[Event "Early-Titled-Tuesday-Blitz-March-12-2024"]
[Site "Chess.com"]
[Date "2024.03.12"]
[Round "3"]
[White "Defend1r"]
[Black "Sychev_on_YouTube"]
[Result "1-0"]
[WhiteElo "2744"]
[BlackElo "2915"]
[TimeControl "180+1"]
[EndTime "8:28:35 PDT"]
[Termination "Defend1r won on time"]

1. e4 {[%clk 0:03:00.9]} 1... e5 {[%clk 0:03:00.1]} 2. Nf3 {[%clk 0:03:01.3]}
2... Nc6 {[%clk 0:03:00.6]} 3. Bc4 {[%clk 0:03:01.7]} 3... Nf6 {[%clk
0:03:00.8]} 4. d4 {[%clk 0:03:02.3]} 4... exd4 {[%clk 0:03:00.8]} 5. e5 {[%clk
0:03:03.2]} 5... Ne4 {[%clk 0:03:01.1]} 6. Qe2 {[%clk 0:03:02.7]} 6... Nc5
{[%clk 0:03:01.3]} 7. O-O {[%clk 0:03:03.3]} 7... Be7 {[%clk 0:03:00.8]} 8. Rd1
{[%clk 0:03:03.1]} 8... d5 {[%clk 0:02:54.8]} 9. exd6 {[%clk 0:02:59.6]} 9...
Qxd6 {[%clk 0:02:54.6]} 10. b4 {[%clk 0:02:46.5]} 10... Ne6 {[%clk 0:02:34.5]}
11. b5 {[%clk 0:02:39.5]} 11... Na5 {[%clk 0:02:34.5]} 12. Ba3 {[%clk
0:02:38.3]} 12... Qd8 {[%clk 0:02:22.9]} 13. Bxe6 {[%clk 0:02:24]} 13... Bxe6
{[%clk 0:02:20.3]} 14. Nxd4 {[%clk 0:02:22.7]} 14... Bd6 {[%clk 0:01:25.1]} 15.
Nxe6 {[%clk 0:01:53.4]} 15... fxe6 {[%clk 0:01:21.5]} 16. Bxd6 {[%clk
0:01:52.7]} 16... cxd6 {[%clk 0:01:22]} 17. Qxe6+ {[%clk 0:01:52.8]} 17... Qe7
{[%clk 0:01:22.4]} 18. Qd5 {[%clk 0:01:48.9]} 18... Rc8 {[%clk 0:01:03.6]} 19.
Na3 {[%clk 0:01:33]} 19... Rc5 {[%clk 0:01:00.1]} 20. Qd2 {[%clk 0:01:22.1]}
20... b6 {[%clk 0:00:49.9]} 21. Re1 {[%clk 0:01:21.8]} 21... Re5 {[%clk
0:00:40.5]} 22. Rxe5 {[%clk 0:01:21.8]} 22... dxe5 {[%clk 0:00:37.9]} 23. Qd5
{[%clk 0:01:21.7]} 23... Rf8 {[%clk 0:00:28]} 24. Rd1 {[%clk 0:00:58.4]} 24...
Rf6 {[%clk 0:00:21.9]} 25. Nc4 {[%clk 0:00:55.1]} 25... Nxc4 {[%clk 0:00:19.3]}
26. Qxc4 {[%clk 0:00:54.6]} 26... Rf4 {[%clk 0:00:04.2]} 27. Qg8+ {[%clk
0:00:52.2]} 27... Rf8 {[%clk 0:00:03.6]} 28. Qd5 {[%clk 0:00:51.8]} 28... Rf6
{[%clk 0:00:02.5]} 29. h3 {[%clk 0:00:41.3]} 29... g6 {[%clk 0:00:02.7]} 30. a4
{[%clk 0:00:26.7]} 30... Kf8 {[%clk 0:00:02.9]} 31. Qa8+ {[%clk 0:00:25.9]}
31... Kg7 {[%clk 0:00:02.9]} 32. Qc8 {[%clk 0:00:26.1]} 32... Rf7 {[%clk
0:00:03.3]} 33. Qb8 {[%clk 0:00:23.2]} 33... Qf6 {[%clk 0:00:03.4]} 34. Rd2
{[%clk 0:00:20.3]} 34... e4 {[%clk 0:00:03.5]} 35. Re2 {[%clk 0:00:17.8]} 35...
Re7 {[%clk 0:00:03.5]} 36. g3 {[%clk 0:00:17.4]} 36... Qf3 {[%clk 0:00:03.2]}
37. Re3 {[%clk 0:00:17.6]} 37... Qd1+ {[%clk 0:00:03.4]} 38. Kg2 {[%clk
0:00:18]} 38... Qxc2 {[%clk 0:00:03.9]} 39. Qd6 {[%clk 0:00:18]} 39... Qc5
{[%clk 0:00:02.8]} 40. Qxc5 {[%clk 0:00:14.6]} 40... bxc5 {[%clk 0:00:03.3]} 41.
f3 {[%clk 0:00:14.8]} 41... exf3+ {[%clk 0:00:03.3]} 42. Kxf3 {[%clk 0:00:15.7]}
42... Rd7 {[%clk 0:00:03.6]} 43. Re6 {[%clk 0:00:14.3]} 43... Rd3+ {[%clk
0:00:02.9]} 44. Kf2 {[%clk 0:00:14.5]} 44... Rd2+ {[%clk 0:00:03.1]} 45. Ke3
{[%clk 0:00:14.6]} 45... Rg2 {[%clk 0:00:03]} 46. Kf3 {[%clk 0:00:14.6]} 46...
Ra2 {[%clk 0:00:02.9]} 47. Ra6 {[%clk 0:00:15.2]} 47... Kh6 {[%clk 0:00:03]} 48.
Rxa7 {[%clk 0:00:15.8]} 48... c4 {[%clk 0:00:03.5]} 49. b6 {[%clk 0:00:16.3]}
49... c3 {[%clk 0:00:03.3]} 50. Ke3 {[%clk 0:00:09.4]} 1-0

[Event "Early-Titled-Tuesday-Blitz-March-12-2024"]
[Site "Chess.com"]
[Date "2024.03.12"]
[Round "3"]
[White "Yeritsyaan"]
[Black "Bkmzzzzz"]
[Result "0-1"]
[WhiteElo "2642"]
[BlackElo "2417"]
[TimeControl "180+1"]
[EndTime "8:28:36 PDT"]
[Termination "Bkmzzzzz won by resignation"]

1. c4 {[%clk 0:03:00.9]} 1... e5 {[%clk 0:02:59.3]} 2. g3 {[%clk 0:02:59.8]}
2... d6 {[%clk 0:02:59.4]} 3. Bg2 {[%clk 0:03:00.1]} 3... f5 {[%clk 0:02:59.8]}
4. Nc3 {[%clk 0:03:00.8]} 4... Nf6 {[%clk 0:03:00.2]} 5. e3 {[%clk 0:02:59.4]}
5... g6 {[%clk 0:02:59.1]} 6. Nge2 {[%clk 0:02:59.9]} 6... Bg7 {[%clk
0:02:59.7]} 7. O-O {[%clk 0:03:00.6]} 7... O-O {[%clk 0:03:00]} 8. d4 {[%clk
0:03:01.4]} 8... c6 {[%clk 0:02:59.8]} 9. b4 {[%clk 0:03:00.2]} 9... a6 {[%clk
0:02:58.8]} 10. Bb2 {[%clk 0:03:00.1]} 10... Be6 {[%clk 0:02:58.5]} 11. c5
{[%clk 0:02:55.3]} 11... e4 {[%clk 0:02:21.3]} 12. cxd6 {[%clk 0:02:48.1]} 12...
Qxd6 {[%clk 0:02:20.5]} 13. a4 {[%clk 0:02:47.3]} 13... Nbd7 {[%clk 0:02:16.7]}
14. Ba3 {[%clk 0:02:39.2]} 14... b5 {[%clk 0:01:55.3]} 15. Rc1 {[%clk 0:02:34]}
15... Nb6 {[%clk 0:01:48.4]} 16. Bb2 {[%clk 0:01:58.7]} 16... Qxb4 {[%clk
0:01:34.3]} 17. Qd2 {[%clk 0:01:49.7]} 17... Nc4 {[%clk 0:01:32.9]} 18. Nxe4
{[%clk 0:01:41.8]} 18... Qxd2 {[%clk 0:01:24.9]} 19. Nxd2 {[%clk 0:01:42.7]}
19... Nxd2 {[%clk 0:01:20]} 20. Rxc6 {[%clk 0:01:36.2]} 20... Bd5 {[%clk
0:01:06.6]} 21. Rxf6 {[%clk 0:01:23.6]} 21... Bxg2 {[%clk 0:00:17.7]} 22. Rxf8+
{[%clk 0:01:23.4]} 22... Kxf8 {[%clk 0:00:18.6]} 23. Rd1 {[%clk 0:01:09.4]}
23... Nc4 {[%clk 0:00:18.5]} 24. axb5 {[%clk 0:01:05.4]} 24... axb5 {[%clk
0:00:15.9]} 25. Kxg2 {[%clk 0:01:05]} 25... Nxb2 {[%clk 0:00:15.7]} 26. Rb1
{[%clk 0:01:05.7]} 26... Nc4 {[%clk 0:00:13.7]} 27. Rxb5 {[%clk 0:00:55.8]}
27... Ra2 {[%clk 0:00:14.2]} 28. Nc3 {[%clk 0:00:51]} 28... Rc2 {[%clk
0:00:13.4]} 29. Nd5 {[%clk 0:00:51.2]} 29... Bh6 {[%clk 0:00:12.4]} 30. Rb3
{[%clk 0:00:39.9]} 30... Kf7 {[%clk 0:00:11.4]} 31. h4 {[%clk 0:00:28.6]} 31...
Ke6 {[%clk 0:00:11.8]} 32. Nf4+ {[%clk 0:00:29.1]} 32... Bxf4 {[%clk 0:00:11.6]}
33. gxf4 {[%clk 0:00:30]} 33... Kd5 {[%clk 0:00:11.1]} 34. Kg3 {[%clk
0:00:23.3]} 34... Nd6 {[%clk 0:00:10.4]} 35. f3 {[%clk 0:00:20.7]} 35... h5
{[%clk 0:00:09.1]} 36. Ra3 {[%clk 0:00:19.4]} 36... Re2 {[%clk 0:00:09.6]} 37.
Ra5+ {[%clk 0:00:19.3]} 37... Ke6 {[%clk 0:00:09.7]} 38. Re5+ {[%clk 0:00:19.7]}
38... Kd7 {[%clk 0:00:09.6]} 39. d5 {[%clk 0:00:19]} 39... Nc4 {[%clk
0:00:09.6]} 40. e4 {[%clk 0:00:18.5]} 40... Nxe5 {[%clk 0:00:09.1]} 41. fxe5
{[%clk 0:00:18.1]} 41... fxe4 {[%clk 0:00:09.6]} 42. f4 {[%clk 0:00:06.5]} 42...
Rd2 {[%clk 0:00:09]} 43. d6 {[%clk 0:00:06.3]} 43... Ke6 {[%clk 0:00:09.5]} 44.
Kh3 {[%clk 0:00:05.4]} 44... Rd3+ {[%clk 0:00:10]} 45. Kg2 {[%clk 0:00:05.7]}
45... Kf5 {[%clk 0:00:10.7]} 46. Kf2 {[%clk 0:00:05.6]} 46... Kxf4 {[%clk
0:00:11]} 47. Ke2 {[%clk 0:00:06]} 47... Rd5 {[%clk 0:00:10.4]} 48. e6 {[%clk
0:00:04.6]} 48... Rxd6 {[%clk 0:00:10.8]} 49. e7 {[%clk 0:00:04.6]} 49... Re6
{[%clk 0:00:11.7]} 0-1

[Event "Early-Titled-Tuesday-Blitz-March-12-2024"]
[Site "Chess.com"]
[Date "2024.03.12"]
[Round "3"]
[White "Goryachkina"]
[Black "MaxLeto"]
[Result "0-1"]
[WhiteElo "2677"]
[BlackElo "2486"]
[TimeControl "180+1"]
[EndTime "8:28:37 PDT"]
[Termination "MaxLeto won on time"]

1. Nf3 {[%clk 0:02:58.2]} 1... h5 {[%clk 0:02:43.5]} 2. e4 {[%clk 0:02:55.1]}
2... h4 {[%clk 0:02:43.4]} 3. h3 {[%clk 0:02:53]} 3... c5 {[%clk 0:02:41.9]} 4.
c3 {[%clk 0:02:47.5]} 4... Nf6 {[%clk 0:02:40.6]} 5. e5 {[%clk 0:02:41.6]} 5...
Nd5 {[%clk 0:02:40.7]} 6. d4 {[%clk 0:02:41]} 6... e6 {[%clk 0:02:40.5]} 7. Bc4
{[%clk 0:02:39.4]} 7... Nb6 {[%clk 0:02:37.7]} 8. Bb3 {[%clk 0:02:38.2]} 8...
Nc6 {[%clk 0:02:32.5]} 9. O-O {[%clk 0:02:35.1]} 9... d6 {[%clk 0:02:21.3]} 10.
Nbd2 {[%clk 0:02:18.7]} 10... dxe5 {[%clk 0:01:52.8]} 11. dxe5 {[%clk
0:02:16.6]} 11... Qc7 {[%clk 0:01:52.9]} 12. Ne4 {[%clk 0:01:55.6]} 12... Nxe5
{[%clk 0:01:35.1]} 13. Bf4 {[%clk 0:01:54]} 13... Nxf3+ {[%clk 0:01:26.1]} 14.
Qxf3 {[%clk 0:01:53.7]} 14... Qc6 {[%clk 0:01:21.9]} 15. Rfe1 {[%clk 0:01:39.1]}
15... Bd7 {[%clk 0:01:15.2]} 16. a4 {[%clk 0:01:09.8]} 16... c4 {[%clk 0:01:06]}
17. Bc2 {[%clk 0:01:05.6]} 17... Be7 {[%clk 0:01:03.4]} 18. Be5 {[%clk
0:00:30.9]} 18... f6 {[%clk 0:00:58.3]} 19. Bh2 {[%clk 0:00:28.5]} 19... Nd5
{[%clk 0:00:50.7]} 20. Rad1 {[%clk 0:00:26.9]} 20... O-O-O {[%clk 0:00:46.9]}
21. a5 {[%clk 0:00:25.9]} 21... a6 {[%clk 0:00:45.5]} 22. Nd2 {[%clk 0:00:22.7]}
22... g5 {[%clk 0:00:32.4]} 23. Re4 {[%clk 0:00:22.5]} 23... b5 {[%clk
0:00:24.5]} 24. axb6 {[%clk 0:00:21.6]} 24... Nxb6 {[%clk 0:00:25.2]} 25. Qe2
{[%clk 0:00:19.9]} 25... f5 {[%clk 0:00:18.9]} 26. Re5 {[%clk 0:00:07.9]} 26...
Bd6 {[%clk 0:00:16.1]} 27. Nf3 {[%clk 0:00:07.6]} 27... Kb7 {[%clk 0:00:14.5]}
28. Nd4 {[%clk 0:00:07.2]} 28... Qc7 {[%clk 0:00:12.9]} 29. f4 {[%clk
0:00:02.5]} 29... Bxe5 {[%clk 0:00:11.3]} 30. fxe5 {[%clk 0:00:02.8]} 30... Rhe8
{[%clk 0:00:10.2]} 31. Kh1 {[%clk 0:00:02.9]} 31... Bc6 {[%clk 0:00:10.2]} 32.
Bg1 {[%clk 0:00:03]} 32... Bd5 {[%clk 0:00:10.2]} 33. Ra1 {[%clk 0:00:02.6]}
33... g4 {[%clk 0:00:10.1]} 34. hxg4 {[%clk 0:00:02.1]} 34... fxg4 {[%clk
0:00:11]} 35. Be4 {[%clk 0:00:01.2]} 35... h3 {[%clk 0:00:10.8]} 36. g3 {[%clk
0:00:01.1]} 36... Qxe5 {[%clk 0:00:08]} 37. Bxd5+ {[%clk 0:00:01.1]} 37... exd5
{[%clk 0:00:08.9]} 38. Qxe5 {[%clk 0:00:01.1]} 38... Rxe5 {[%clk 0:00:07.6]} 39.
b3 {[%clk 0:00:01.2]} 39... Re4 {[%clk 0:00:05.2]} 40. b4 {[%clk 0:00:01.2]}
40... Rf8 {[%clk 0:00:04.6]} 41. Nc2 {[%clk 0:00:01.2]} 41... Rd8 {[%clk
0:00:03.9]} 0-1

[Event "Early-Titled-Tuesday-Blitz-March-12-2024"]
[Site "Chess.com"]
[Date "2024.03.12"]
[Round "3"]
[White "zenitushka"]
[Black "HajiyevKanan"]
[Result "1-0"]
[WhiteElo "2284"]
[BlackElo "2569"]
[TimeControl "180+1"]
[EndTime "8:28:41 PDT"]
[Termination "zenitushka won by resignation"]

1. d4 {[%clk 0:03:00]} 1... d5 {[%clk 0:02:38.2]} 2. e4 {[%clk 0:03:00]} 2... c6
{[%clk 0:02:38.1]} 3. Nc3 {[%clk 0:02:59.9]} 3... a6 {[%clk 0:02:37.8]} 4. Nf3
{[%clk 0:02:54.7]} 4... Bg4 {[%clk 0:02:37.8]} 5. Bd3 {[%clk 0:02:50.5]} 5... e6
{[%clk 0:02:37.7]} 6. O-O {[%clk 0:02:48.2]} 6... Nf6 {[%clk 0:02:37.4]} 7. Re1
{[%clk 0:02:32.9]} 7... Bb4 {[%clk 0:02:36.2]} 8. e5 {[%clk 0:02:30.5]} 8...
Nfd7 {[%clk 0:02:36.4]} 9. Bd2 {[%clk 0:02:20]} 9... Be7 {[%clk 0:02:30.7]} 10.
h3 {[%clk 0:02:16.5]} 10... Bh5 {[%clk 0:02:29.8]} 11. a4 {[%clk 0:01:54.3]}
11... c5 {[%clk 0:02:28.5]} 12. a5 {[%clk 0:01:44.4]} 12... cxd4 {[%clk
0:02:25.7]} 13. Na4 {[%clk 0:01:42.6]} 13... Nc6 {[%clk 0:02:22.8]} 14. c3
{[%clk 0:01:25]} 14... Qxa5 {[%clk 0:02:09.8]} 15. cxd4 {[%clk 0:01:21.6]} 15...
Qc7 {[%clk 0:02:10.1]} 16. Rc1 {[%clk 0:01:19.1]} 16... O-O {[%clk 0:02:08.6]}
17. Qc2 {[%clk 0:00:35.3]} 17... Bg6 {[%clk 0:02:06.5]} 18. Bxg6 {[%clk
0:00:31.1]} 18... hxg6 {[%clk 0:02:07.4]} 19. Qd3 {[%clk 0:00:29.3]} 19... Nb6
{[%clk 0:02:00.6]} 20. Nc5 {[%clk 0:00:26.7]} 20... Bxc5 {[%clk 0:02:00.5]} 21.
Rxc5 {[%clk 0:00:27.6]} 21... Nc4 {[%clk 0:01:54.1]} 22. Bc1 {[%clk 0:00:23.9]}
22... b6 {[%clk 0:01:53.1]} 23. Rxc4 {[%clk 0:00:19.3]} 23... dxc4 {[%clk
0:01:53.6]} 24. Qxc4 {[%clk 0:00:20.2]} 24... Rfc8 {[%clk 0:01:51.8]} 25. Qd3
{[%clk 0:00:20.2]} 25... Nb4 {[%clk 0:01:50.5]} 26. Qe4 {[%clk 0:00:20.5]} 26...
Nc2 {[%clk 0:00:52.3]} 27. Rd1 {[%clk 0:00:18.1]} 27... Qc4 {[%clk 0:00:42.4]}
28. Ng5 {[%clk 0:00:15.4]} 28... b5 {[%clk 0:00:10]} 29. Qf4 {[%clk 0:00:15.1]}
29... Ra7 {[%clk 0:00:08.4]} 30. Qh4 {[%clk 0:00:15.1]} 30... Kf8 {[%clk
0:00:08.4]} 31. Qh8+ {[%clk 0:00:15.1]} 31... Ke7 {[%clk 0:00:09.1]} 32. Qxg7
{[%clk 0:00:16]} 32... Rf8 {[%clk 0:00:06.2]} 33. Nh7 {[%clk 0:00:14.4]} 33...
Re8 {[%clk 0:00:02.7]} 34. Qf6+ {[%clk 0:00:15]} 34... Kd7 {[%clk 0:00:02.2]}
35. d5 {[%clk 0:00:15.8]} 35... Re7 {[%clk 0:00:02.8]} 36. dxe6+ {[%clk
0:00:15.5]} 36... Kc7 {[%clk 0:00:02]} 37. exf7 {[%clk 0:00:14.6]} 37... Kb7
{[%clk 0:00:01.5]} 38. Qd6 {[%clk 0:00:15.5]} 38... Rc7 {[%clk 0:00:01.6]} 39.
f8=Q {[%clk 0:00:14.4]} 39... Nb4 {[%clk 0:00:02]} 40. Qxb4 {[%clk 0:00:13.5]}
40... Qc6 {[%clk 0:00:02.1]} 41. Qfd6 {[%clk 0:00:13]} 41... Qe8 {[%clk
0:00:01.9]} 42. Qe4+ {[%clk 0:00:13.2]} 42... Kb8 {[%clk 0:00:02.2]} 43. Nf6
{[%clk 0:00:13.8]} 43... Qc8 {[%clk 0:00:02.2]} 44. Qd8 {[%clk 0:00:14]} 44...
Rab7 {[%clk 0:00:02.3]} 45. Qxc8+ {[%clk 0:00:14.8]} 45... Rxc8 {[%clk
0:00:03.2]} 46. Be3 {[%clk 0:00:15.2]} 46... Re8 {[%clk 0:00:03.5]} 47. e6
{[%clk 0:00:15.6]} 47... Rc8 {[%clk 0:00:03.8]} 48. Bf4+ {[%clk 0:00:16.1]}
48... Ka7 {[%clk 0:00:04]} 49. e7 {[%clk 0:00:17]} 49... Rxe7 {[%clk 0:00:03.8]}
50. Qxe7+ {[%clk 0:00:17.3]} 50... Kb6 {[%clk 0:00:04.1]} 51. Qe6+ {[%clk
0:00:17.5]} 51... Ka5 {[%clk 0:00:04.5]} 52. Qxc8 {[%clk 0:00:18]} 52... Ka4
{[%clk 0:00:04.5]} 53. Qc5 {[%clk 0:00:18.1]} 1-0

[Event "Early-Titled-Tuesday-Blitz-March-12-2024"]
[Site "Chess.com"]
[Date "2024.03.12"]
[Round "3"]
[White "KuzubovYuriy"]
[Black "Ginzburg_Yakov"]
[Result "1-0"]
[WhiteElo "2902"]
[BlackElo "2547"]
[TimeControl "180+1"]
[EndTime "8:28:42 PDT"]
[Termination "KuzubovYuriy won by resignation"]

1. d4 {[%clk 0:03:00.9]} 1... d5 {[%clk 0:02:58.8]} 2. c4 {[%clk 0:03:00.8]}
2... c6 {[%clk 0:02:57.9]} 3. Nf3 {[%clk 0:03:01.2]} 3... Nf6 {[%clk 0:02:57.9]}
4. Nc3 {[%clk 0:03:01.9]} 4... dxc4 {[%clk 0:02:57.8]} 5. a4 {[%clk 0:03:01.9]}
5... Bf5 {[%clk 0:02:57.4]} 6. Nh4 {[%clk 0:03:02.3]} 6... Bc8 {[%clk 0:02:57]}
7. e3 {[%clk 0:03:00.7]} 7... c5 {[%clk 0:02:53.1]} 8. Bxc4 {[%clk 0:02:58.1]}
8... cxd4 {[%clk 0:02:51.9]} 9. exd4 {[%clk 0:02:58.3]} 9... e6 {[%clk
0:02:39.7]} 10. O-O {[%clk 0:02:58]} 10... Nc6 {[%clk 0:02:38.8]} 11. Nf3 {[%clk
0:02:57.8]} 11... Be7 {[%clk 0:02:37.6]} 12. Qe2 {[%clk 0:02:57.6]} 12... O-O
{[%clk 0:02:37.2]} 13. Rd1 {[%clk 0:02:57.2]} 13... Nb4 {[%clk 0:02:37]} 14. Bg5
{[%clk 0:02:51.4]} 14... Bd7 {[%clk 0:02:36.3]} 15. Ne5 {[%clk 0:02:49.6]} 15...
Rc8 {[%clk 0:02:29]} 16. Rac1 {[%clk 0:02:34.3]} 16... h6 {[%clk 0:02:10.8]} 17.
Bh4 {[%clk 0:02:32.4]} 17... Nfd5 {[%clk 0:01:58.1]} 18. Nxd5 {[%clk 0:01:41.9]}
18... exd5 {[%clk 0:01:30.3]} 19. Nxd7 {[%clk 0:01:31.7]} 19... Bxh4 {[%clk
0:01:23.3]} 20. Bb5 {[%clk 0:01:29.2]} 20... Rxc1 {[%clk 0:01:07.5]} 21. Rxc1
{[%clk 0:01:27.9]} 21... Qg5 {[%clk 0:00:59.5]} 22. Re1 {[%clk 0:01:11.3]} 22...
Rd8 {[%clk 0:00:44.1]} 23. Qe8+ {[%clk 0:01:10.3]} 23... Kh7 {[%clk 0:00:34.4]}
24. Qxf7 {[%clk 0:00:56.6]} 24... Qd2 {[%clk 0:00:25.6]} 25. Rf1 {[%clk
0:00:49.1]} 25... Nd3 {[%clk 0:00:22.7]} 26. Nf8+ {[%clk 0:00:44.6]} 26... Rxf8
{[%clk 0:00:21.6]} 27. Bxd3+ {[%clk 0:00:40.4]} 27... Qxd3 {[%clk 0:00:20]} 28.
Qxf8 {[%clk 0:00:41]} 28... Bf6 {[%clk 0:00:19.5]} 29. Qb4 {[%clk 0:00:33.5]}
29... b6 {[%clk 0:00:17.8]} 30. Qc3 {[%clk 0:00:32.6]} 30... Qxd4 {[%clk
0:00:14.9]} 31. Qxd4 {[%clk 0:00:31.8]} 31... Bxd4 {[%clk 0:00:15.8]} 32. Rd1
{[%clk 0:00:29.9]} 32... Bxb2 {[%clk 0:00:16]} 33. Rxd5 {[%clk 0:00:30.5]} 33...
a5 {[%clk 0:00:15.7]} 34. Rd6 {[%clk 0:00:29.4]} 34... Be5 {[%clk 0:00:13.6]}
35. Rxb6 {[%clk 0:00:29.6]} 35... Kg8 {[%clk 0:00:14]} 36. Rb5 {[%clk
0:00:29.4]} 36... Bc3 {[%clk 0:00:13.9]} 37. f4 {[%clk 0:00:29.2]} 37... Kf7
{[%clk 0:00:14.1]} 38. g4 {[%clk 0:00:29.5]} 38... g6 {[%clk 0:00:14]} 39. Kg2
{[%clk 0:00:29.8]} 39... Ke6 {[%clk 0:00:14.2]} 40. Kf3 {[%clk 0:00:30.2]} 40...
Bd2 {[%clk 0:00:13.8]} 41. h4 {[%clk 0:00:30.2]} 41... Kf6 {[%clk 0:00:13.8]}
42. h5 {[%clk 0:00:30.4]} 42... gxh5 {[%clk 0:00:11.3]} 43. Rxh5 {[%clk
0:00:30.5]} 43... Kg6 {[%clk 0:00:11.7]} 44. Ke4 {[%clk 0:00:30.8]} 44... Bc3
{[%clk 0:00:10.9]} 45. Rb5 {[%clk 0:00:30.8]} 45... Bd2 {[%clk 0:00:10.9]} 46.
Rb6+ {[%clk 0:00:30.3]} 46... Kg7 {[%clk 0:00:11.1]} 47. Ra6 {[%clk 0:00:30.4]}
47... Kh7 {[%clk 0:00:10.3]} 48. Kf5 {[%clk 0:00:30.5]} 48... Bc3 {[%clk
0:00:09.6]} 49. Ra7+ {[%clk 0:00:30.3]} 49... Kg8 {[%clk 0:00:07.8]} 50. Kg6
{[%clk 0:00:30.7]} 50... Kf8 {[%clk 0:00:07.6]} 51. Kxh6 {[%clk 0:00:31.1]}
51... Bd2 {[%clk 0:00:07.1]} 52. Kg5 {[%clk 0:00:30.5]} 52... Be3 {[%clk
0:00:07]} 53. Rb7 {[%clk 0:00:30.4]} 53... Bd2 {[%clk 0:00:06.8]} 54. Kf5 {[%clk
0:00:30.9]} 1-0

[Event "Early-Titled-Tuesday-Blitz-March-12-2024"]
[Site "Chess.com"]
[Date "2024.03.12"]
[Round "3"]
[White "Pikku_Myy73"]
[Black "Baronessa08"]
[Result "0-1"]
[WhiteElo "2279"]
[BlackElo "2548"]
[TimeControl "180+1"]
[EndTime "8:28:44 PDT"]
[Termination "Baronessa08 won on time"]

1. d4 {[%clk 0:03:00.9]} 1... d5 {[%clk 0:02:59.6]} 2. c4 {[%clk 0:03:01.1]}
2... dxc4 {[%clk 0:02:59.6]} 3. e4 {[%clk 0:03:00.7]} 3... Nf6 {[%clk
0:02:59.6]} 4. e5 {[%clk 0:03:00.5]} 4... Nd5 {[%clk 0:03:00]} 5. Bxc4 {[%clk
0:03:00.6]} 5... Nb6 {[%clk 0:03:00.3]} 6. Bd3 {[%clk 0:02:59.6]} 6... Nc6
{[%clk 0:03:00.4]} 7. Ne2 {[%clk 0:02:58.1]} 7... Bg4 {[%clk 0:03:00.1]} 8. f3
{[%clk 0:02:57.8]} 8... Bh5 {[%clk 0:02:59.1]} 9. Be3 {[%clk 0:02:52.4]} 9... e6
{[%clk 0:02:58.8]} 10. O-O {[%clk 0:02:51.3]} 10... Bg6 {[%clk 0:02:55.2]} 11.
Nbc3 {[%clk 0:02:50.3]} 11... Bxd3 {[%clk 0:02:50]} 12. Qxd3 {[%clk 0:02:51.2]}
12... Nb4 {[%clk 0:02:45.8]} 13. Qd1 {[%clk 0:02:36.3]} 13... Be7 {[%clk
0:02:42.1]} 14. f4 {[%clk 0:02:07.8]} 14... N4d5 {[%clk 0:02:36.8]} 15. Bf2
{[%clk 0:02:00.9]} 15... O-O {[%clk 0:02:34.4]} 16. Rc1 {[%clk 0:01:53.6]} 16...
Nc4 {[%clk 0:02:24.1]} 17. Nxd5 {[%clk 0:01:46.1]} 17... Qxd5 {[%clk 0:02:07.7]}
18. b3 {[%clk 0:01:40.6]} 18... Nb6 {[%clk 0:01:58.3]} 19. Rxc7 {[%clk
0:01:35.5]} 19... Rfe8 {[%clk 0:01:57.2]} 20. Qd2 {[%clk 0:01:23.8]} 20... Rac8
{[%clk 0:01:49.1]} 21. Rfc1 {[%clk 0:01:22.8]} 21... Rxc7 {[%clk 0:01:48.8]} 22.
Rxc7 {[%clk 0:01:22.8]} 22... Rc8 {[%clk 0:01:29.6]} 23. Rxc8+ {[%clk 0:01:21]}
23... Nxc8 {[%clk 0:01:29.2]} 24. Qc2 {[%clk 0:01:14.5]} 24... Nb6 {[%clk
0:01:19.5]} 25. h3 {[%clk 0:01:14.3]} 25... h6 {[%clk 0:01:16.1]} 26. Qc7 {[%clk
0:00:42.8]} 26... Bb4 {[%clk 0:01:10.8]} 27. Qb8+ {[%clk 0:00:38.6]} 27... Kh7
{[%clk 0:01:08.9]} 28. Qxa7 {[%clk 0:00:37.4]} 28... Nd7 {[%clk 0:00:49.9]} 29.
Qa4 {[%clk 0:00:37.2]} 29... Bd2 {[%clk 0:00:45.1]} 30. Qc4 {[%clk 0:00:35.5]}
30... Qe4 {[%clk 0:00:43.3]} 31. Qb5 {[%clk 0:00:16.3]} 31... Nb8 {[%clk
0:00:32.9]} 32. Ng3 {[%clk 0:00:11.8]} 32... Qb1+ {[%clk 0:00:31.9]} 33. Kh2
{[%clk 0:00:11.5]} 33... Nc6 {[%clk 0:00:18.7]} 34. Qxb7 {[%clk 0:00:11]} 34...
Nb4 {[%clk 0:00:19]} 35. Qe4+ {[%clk 0:00:10.6]} 35... Qxe4 {[%clk 0:00:17.2]}
36. Nxe4 {[%clk 0:00:11.5]} 36... Bxf4+ {[%clk 0:00:16.9]} 37. g3 {[%clk
0:00:10.8]} 37... Bc1 {[%clk 0:00:14.9]} 38. a4 {[%clk 0:00:08.6]} 38... Kg6
{[%clk 0:00:08.9]} 39. a5 {[%clk 0:00:07.9]} 39... f5 {[%clk 0:00:07]} 40. exf6
{[%clk 0:00:07.4]} 40... gxf6 {[%clk 0:00:07.1]} 41. Be1 {[%clk 0:00:07.1]}
41... Na6 {[%clk 0:00:06.3]} 42. b4 {[%clk 0:00:06.3]} 42... Be3 {[%clk
0:00:04.8]} 43. b5 {[%clk 0:00:05.3]} 43... Nc7 {[%clk 0:00:05]} 44. Bc3 {[%clk
0:00:01.8]} 44... f5 {[%clk 0:00:04.6]} 45. b6 {[%clk 0:00:01.3]} 45... Na6
{[%clk 0:00:04.5]} 0-1